bitfinex/quotes_SOLUSD_20260305
["timestamp","ask_amount","ask_price","bid_price","bid_amount"]
[1772726489273,11.18096543,89.438,89.38,3.70804165]
[1772726489466,12.02134592,89.438,89.38,3.70804165]
[1772726489672,11.18096543,89.438,89.38,3.70804165]
[1772726489977,11.18096543,89.438,89.382,3.70804165]
[1772726490272,39.13328994,89.438,89.382,3.70804165]
[1772726490976,39.98541383,89.438,89.382,3.70804165]
[1772726492269,12.03308932,89.438,89.382,3.70804165]
[1772726492476,12.03308932,89.438,89.384,3.70804165]
[1772726492780,0.85223794,89.457,89.386,3.69383402]
[1772726492957,0.85223794,89.455,89.389,3.70804165]
[1772726493162,0.85223794,89.437,89.389,3.70804165]
[1772726493362,0.85223794,89.435,89.389,3.70804165]
[1772726493667,0.85223794,89.433,89.389,3.70804165]
[1772726494066,0.84038049,89.434,89.389,3.70804165]
[1772726494369,0.14216157,89.438,89.389,3.70804165]
[1772726494876,11.32309137,89.438,89.391,3.70804165]
[1772726495192,0.85234939,89.437,89.391,3.70804165]
[1772726495367,0.85234939,89.436,89.391,3.70804165]
[1772726495764,0.85240416,89.464,89.391,3.70804165]
[1772726495989,0.85240416,89.459,89.393,3.70804165]
[1772726496163,0.85240416,89.449,89.393,3.70804165]
[1772726496364,0.85240416,89.447,89.393,3.70804165]
[1772726496587,11.31875509,89.45,89.393,3.70804165]
[1772726496588,0.85240416,89.443,89.393,3.70804165]
[1772726496773,0.99461986,89.439,89.395,3.70804165]
[1772726496972,0.85245829,89.437,89.395,3.70804165]
[1772726497863,0.84038049,89.438,89.397,3.70804165]
[1772726497864,0.85251181,89.435,89.397,3.70804165]
[1772726498066,0.85251181,89.433,89.388,3.70804165]
[1772726498274,0.85251181,89.431,89.388,3.70804165]
[1772726498472,0.85251181,89.428,89.379,3.70804165]
[1772726498677,12.15913558,89.43,89.37,0.2]
[1772726498678,0.28432314,89.425,89.381,3.70804165]
[1772726498868,0.85256471,89.422,89.381,3.70804165]
[1772726499072,1.13688785,89.42,89.381,3.70804165]
[1772726499265,1.13688785,89.418,89.381,3.70804165]
[1772726499461,0.85256471,89.416,89.381,3.70804165]
[1772726500764,0.85256471,89.416,89.38,11.18818527]
[1772726500969,0.85266869,89.413,89.371,14.89735361]
[1772726501165,0.85266869,89.413,89.37,0.2]
[1772726501166,0.99483026,89.41,89.372,3.70804165]
[1772726501387,0.14216157,89.409,89.372,3.70804165]
[1772726501693,0.14216157,89.408,89.372,3.70804165]
[1772726501888,0.85271979,89.407,89.369,1.20633975]
[1772726502079,0.14216157,89.408,89.371,3.70804165]
[1772726502283,0.84038049,89.409,89.371,3.70804165]
[1772726502467,0.14216157,89.409,89.371,3.70804165]
[1772726502788,0.28432314,89.409,89.371,3.70804165]
[1772726502986,11.18468146,89.408,89.373,3.70804165]
[1772726503990,0.6527703,89.421,89.373,3.70804165]
[1772726503991,11.18416636,89.413,89.373,3.70804165]
[1772726504391,11.18326704,89.42,89.373,3.70804165]
[1772726504987,11.8354248,89.425,89.375,3.70804165]
[1772726505585,11.18255521,89.425,89.375,3.70804165]
[1772726506498,1.12470363,89.424,89.375,3.70804165]
[1772726506995,0.65296661,89.431,89.377,3.70804165]
[1772726507294,0.65296661,89.43,89.377,3.70804165]
[1772726507493,0.65296661,89.428,89.377,3.70804165]
[1772726507802,0.65296661,89.426,89.377,3.70804165]
[1772726507980,0.65291084,89.424,89.377,3.70804165]
[1772726508317,0.65291084,89.422,89.377,3.70804165]
[1772726508601,0.65291084,89.42,89.377,3.70804165]
[1772726508771,1.49323621,89.419,89.377,3.70804165]
[1772726508976,0.65280123,89.418,89.377,3.70804165]
[1772726509171,0.65280123,89.416,89.379,3.68950775]
[1772726509378,0.65280123,89.409,89.37,3.68950775]
[1772726509580,0.65280123,89.407,89.37,3.68950775]
[1772726509993,0.84038049,89.416,89.37,3.68950775]
[1772726510184,39.14244493,89.417,89.37,3.68950775]
[1772726510897,11.18355569,89.417,89.37,3.68950775]
[1772726511279,0.65269412,89.424,89.372,3.68950775]
[1772726511579,0.93701726,89.422,89.372,3.68950775]
[1772726511801,0.65269412,89.42,89.372,3.68950775]
[1772726512101,0.93696462,89.418,89.372,3.68950775]
[1772726512304,0.65264148,89.417,89.372,3.68950775]
[1772726513901,0.65258945,89.415,89.374,3.68950775]
[1772726514804,11.18368077,89.416,89.374,3.68950775]
[1772726515410,11.18314297,89.421,89.374,3.68950775]
[1772726515907,0.65243692,89.424,89.376,3.68950775]
[1772726517009,0.65238724,89.422,89.378,3.68950775]
[1772726517193,0.93671038,89.422,89.378,3.68950775]
[1772726517385,0.65238724,89.422,89.378,3.68950775]
[1772726518789,11.18263304,89.425,89.378,3.68950775]
[1772726519804,11.31875509,89.44,89.38,3.68950775]
[1772726519805,0.65224159,89.436,89.38,3.68950775]
[1772726520104,0.84038049,89.439,89.38,3.68950775]
[1772726520105,0.65224159,89.434,89.38,3.68950775]
[1772726520508,0.65224159,89.433,89.38,3.68950775]
[1772726520706,0.28432314,89.429,89.38,3.68950775]
[1772726520897,0.84038049,89.435,89.38,3.68950775]
[1772726521099,0.65219416,89.436,89.38,3.68950775]
[1772726521511,0.65219416,89.435,89.38,3.68950775]
[1772726521707,11.83357714,89.434,89.382,3.68950775]
[1772726522102,0.28432314,89.439,89.381,39.15821035]
[1772726522103,11.18091348,89.439,89.384,3.68950775]
[1772726522513,11.1800046,89.446,89.384,7.38334177]
[1772726522711,11.1800046,89.446,89.388,3.68950775]
[1772726522907,11.17868002,89.456,89.394,3.68950775]
[1772726523514,0.65210091,89.454,89.394,3.68950775]
[1772726524016,11.17905492,89.453,89.396,3.68950775]
[1772726524213,11.17850686,89.458,89.398,3.68950775]
[1772726524520,11.17850686,89.458,89.404,3.68950775]
[1772726525394,0.65200979,89.457,89.404,3.68950775]
[1772726525607,0.65200979,89.455,89.404,3.68950775]
[1772726525807,0.65196502,89.452,89.406,3.68950775]
[1772726526008,11.17905492,89.453,89.406,3.68950775]
[1772726526189,11.83101994,89.453,89.406,3.68950775]
[1772726526395,0.65196502,89.449,89.406,3.68950775]
[1772726526607,0.65196502,89.447,89.406,3.68950775]
[1772726527093,0.28432314,89.449,89.406,3.68950775]
[1772726528021,11.17967981,89.448,89.408,3.68950775]
[1772726528914,0.65183376,89.447,89.408,3.68950775]
[1772726529413,11.17967981,89.448,89.408,3.68950775]
[1772726530022,11.17967981,89.448,89.409,11.18455636]
[1772726530203,11.17967981,89.448,89.41,3.68950775]
[1772726530620,11.17920332,89.452,89.41,3.68950775]
[1772726531999,11.17942984,89.45,89.412,3.68950775]
[1772726532405,11.8311368,89.45,89.412,3.68950775]
[1772726532905,11.17942984,89.45,89.412,3.68950775]
[1772726533109,0.84038049,89.475,89.413,0.14216157]
[1772726533427,0.65166567,89.483,89.414,3.68950775]
[1772726533621,0.65166567,89.478,89.414,3.68950775]
[1772726533920,0.65162485,89.468,89.414,3.68950775]
[1772726534108,0.65162485,89.456,89.416,3.68950775]
[1772726535328,0.65158449,89.449,89.408,3.68950775]
[1772726535527,0.65158449,89.447,89.408,3.68950775]
[1772726536124,0.6515446,89.436,89.393,3.68950775]
[1772726536529,0.6515446,89.429,89.393,3.68950775]
[1772726536724,0.65150517,89.428,89.393,3.68950775]
[1772726537425,0.65150517,89.428,89.359,3.69383402]
[1772726537426,0.65150517,89.428,89.387,11.18721723]
[1772726537608,0.65150517,89.418,89.379,3.68950775]
[1772726538230,0.65146619,89.416,89.379,3.68950775]
[1772726538906,0.65138957,89.415,89.371,3.68950775]
[1772726539828,11.83378208,89.426,89.371,3.68950775]
[1772726540122,11.18179026,89.432,89.373,3.5930458]
[1772726540422,0.84038049,89.449,89.38,3.5930458]
[1772726540628,0.65135192,89.466,89.386,0.14216157]
[1772726540807,0.65135192,89.466,89.394,3.5930458]
[1772726541124,0.65135192,89.466,89.404,3.5930458]
[1772726541713,0.65127791,89.459,89.404,3.5930458]
[1772726541916,0.65127791,89.457,89.404,3.5930458]
[1772726542106,0.65127791,89.455,89.404,3.5930458]
[1772726542423,0.65127791,89.451,89.406,3.5930458]
[1772726542630,0.65127791,89.449,89.406,3.5930458]
[1772726542823,0.65127791,89.449,89.388,3.5930458]
[1772726542824,0.65124154,89.439,89.388,3.5930458]
[1772726543031,0.65124154,89.437,89.388,3.5930458]
[1772726543235,0.65124154,89.435,89.388,3.5930458]
[1772726543434,0.65124154,89.428,89.388,3.5930458]
[1772726543741,0.65120559,89.418,89.37,3.5930458]
[1772726544432,0.65120559,89.408,89.372,3.5930458]
[1772726545617,0.65120559,89.408,89.366,11.18992717]
[1772726546005,0.65120559,89.408,89.363,3.5930458]
[1772726546211,0.65113493,89.388,89.352,3.5930458]
[1772726546432,0.65113493,89.378,89.336,11.19361816]
[1772726546734,0.45113493,89.368,89.331,3.5930458]
[1772726547430,11.31186984,89.39,89.331,3.5930458]
[1772726547609,0.28432314,89.389,89.331,3.5930458]
[1772726548424,11.18718396,89.388,89.333,3.73496681]
[1772726549735,0.4509984,89.387,89.333,3.73496681]
[1772726550437,0.45096524,89.384,89.335,3.73496681]
[1772726550635,0.28432314,89.385,89.335,3.73496681]
[1772726551014,0.84038049,89.389,89.335,3.73496681]
[1772726551320,0.45093246,89.388,89.335,3.73496681]
[1772726551526,0.45093246,89.386,89.335,3.73496681]
[1772726552047,0.45084857,89.384,89.335,3.73496681]
[1772726552415,0.45084857,89.384,89.334,39.17881209]
[1772726552416,0.45084857,89.381,89.337,3.73496681]
[1772726552623,0.28432314,89.382,89.337,3.73496681]
[1772726552624,0.45084857,89.378,89.337,3.73496681]
[1772726553225,0.28432314,89.379,89.337,3.73496681]
[1772726553826,39.99771465,89.383,89.337,3.73496681]
[1772726554127,39.15733416,89.383,89.337,3.73496681]
[1772726554514,0.45068367,89.381,89.339,3.73496681]
[1772726554714,0.45068367,89.379,89.339,3.73496681]
[1772726555440,0.84038049,89.378,89.339,3.73496681]
[1772726555730,1.29106416,89.379,89.339,3.73496681]
[1772726555936,0.45052253,89.378,89.339,3.73496681]
[1772726557728,0.45052253,89.378,89.341,3.73496681]
[1772726557729,11.18856081,89.377,89.341,3.73496681]
[1772726558027,0.84038049,89.381,89.341,3.73496681]
[1772726558214,11.18557011,89.401,89.343,3.73496681]
[1772726559950,39.14946313,89.401,89.345,3.73496681]
[1772726560235,0.45021121,89.399,89.345,3.73496681]
[1772726560437,0.45021121,89.397,89.345,3.73496681]
[1772726560644,0.45021121,89.395,89.345,3.73496681]
[1772726560939,0.4501356,89.393,89.345,3.73496681]
[1772726561140,0.84038049,89.392,89.345,3.73496681]
[1772726561337,0.4501356,89.391,89.345,3.73496681]
[1772726561534,0.84038049,89.39,89.345,3.73496681]
[1772726561733,1.29044135,89.39,89.345,3.73496681]
[1772726561933,0.45006086,89.39,89.345,3.73496681]
[1772726562119,0.45006086,89.387,89.347,3.73496681]
[1772726562318,0.28432314,89.388,89.331,3.73496681]
[1772726562319,0.45006086,89.385,89.331,3.73496681]
[1772726562635,0.45006086,89.383,89.331,3.73496681]
[1772726562935,0.84038049,89.382,89.332,3.73496681]
[1772726563114,11.18705881,89.389,89.332,3.73496681]
[1772726563316,0.28432314,89.407,89.335,3.73496681]
[1772726563511,0.28432314,89.405,89.335,3.73496681]
[1772726563716,1.29036747,89.404,89.335,3.73496681]
[1772726563942,0.44991395,89.398,89.335,3.73496681]
[1772726564141,0.44991395,89.394,89.337,3.73496681]
[1772726565342,11.31186984,89.39,89.337,3.73496681]
[1772726565536,0.44984176,89.388,89.337,3.73496681]
[1772726565739,1.57447402,89.394,89.337,3.73496681]
[1772726566137,0.44977039,89.393,89.337,3.73496681]
[1772726566346,0.73409353,89.39,89.339,3.73496681]
[1772726566548,0.44977039,89.389,89.339,3.73496681]
[1772726566726,0.44977039,89.387,89.339,3.73496681]
[1772726566921,0.44969985,89.386,89.339,3.73496681]
[1772726567137,0.44969985,89.384,89.339,3.73496681]
[1772726567746,0.28432314,89.39,89.339,3.73496681]
[1772726568244,0.87611483,89.387,89.27,0.2]
[1772726568422,0.28432314,89.359,89.307,11.19728116]
[1772726568619,0.28432314,89.359,89.289,27.99885053]
[1772726568620,0.87611483,89.364,89.289,27.99885053]
[1772726568920,0.84038049,89.363,89.311,11.19682905]
[1772726569124,0.87597775,89.361,89.311,11.19682905]
[1772726569333,0.87597775,89.371,89.311,39.18890169]
[1772726569951,0.87591039,89.367,89.311,39.18890169]
[1772726570345,0.87591039,89.367,89.312,3.55438684]
[1772726570727,11.189938,89.366,89.313,11.19657832]
[1772726570928,11.189938,89.366,89.314,3.55438684]
[1772726571130,39.16478301,89.366,89.314,3.55438684]
[1772726571847,11.18743427,89.386,89.317,3.55438684]
[1772726572026,44.72379113,89.438,89.322,0.14216157]
[1772726572027,11.18679834,89.392,89.322,0.14216157]
[1772726572233,11.18679834,89.392,89.333,3.55438684]
[1772726572843,11.18605769,89.397,89.335,3.55438684]
[1772726573043,11.18605769,89.397,89.337,7.24822086]
[1772726573351,0.87571292,89.417,89.343,3.55438684]
[1772726573352,11.18430618,89.411,89.343,3.55438684]
[1772726573525,0.28432314,89.41,89.343,3.55438684]
[1772726573729,11.18430618,89.411,89.343,3.55438684]
[1772726573927,0.87594871,89.41,89.343,3.55438684]
[1772726574143,1.16027185,89.409,89.343,3.55438684]
[1772726574351,0.87594871,89.407,89.343,3.55438684]
[1772726575247,0.87618179,89.405,89.345,3.55438684]
[1772726576835,0.87663995,89.404,89.345,3.55438684]
[1772726577058,0.87663995,89.396,89.312,3.55438684]
[1772726577243,11.19093981,89.358,89.313,11.19657832]
[1772726577554,11.19093981,89.358,89.314,3.55438684]
[1772726578440,39.16828934,89.358,89.314,3.55438684]
[1772726578755,0.87686509,89.357,89.314,3.55438684]
[1772726579334,0.87708765,89.355,89.314,3.55438684]
[1772726579564,0.87708765,89.353,89.314,3.55438684]
[1772726579732,1.01946922,89.352,89.314,3.55438684]
[1772726579940,0.87730765,89.349,89.31,0.2]
[1772726580135,0.87730765,89.347,89.31,0.2]
[1772726580464,0.27730763,89.316,89.252,3.55438684]
[1772726580641,11.58917747,89.29,89.252,3.55438684]
[1772726580845,0.2775251,89.289,89.252,3.55438684]
[1772726581153,0.2775251,89.278,89.26,1e-08]
[1772726581336,0.2775251,89.276,89.25,1e-08]
[1772726581753,11.20109322,89.277,89.25,1e-08]
[1772726581962,0.28432314,89.288,89.251,3.65348571]
[1772726582141,11.31186984,89.3,89.251,3.65348571]
[1772726582142,11.19844911,89.299,89.251,3.65348571]
[1772726582859,11.19657832,89.313,89.253,3.65348571]
[1772726583445,11.19519949,89.324,89.255,3.65348571]
[1772726583643,11.19519949,89.324,89.256,0.28432314]
[1772726583844,11.19519949,89.324,89.263,3.65348571]
[1772726584155,0.27816264,89.309,89.258,3.65348571]
[1772726584343,0.27816264,89.308,89.258,3.65348571]
[1772726585349,0.27837029,89.316,89.26,3.65348571]
[1772726586858,0.27837029,89.316,89.25,1e-08]
[1772726586859,0.27864125,89.309,89.253,3.65348571]
[1772726587039,39.18714661,89.315,89.253,3.65348571]
[1772726587040,0.27864125,89.298,89.253,3.65348571]
[1772726588652,0.28432314,89.314,89.255,3.65348571]
[1772726588863,0.27890603,89.308,89.255,3.65348571]
[1772726589155,11.1963276,89.315,89.255,3.65348571]
[1772726589343,0.27890603,89.314,89.255,3.65348571]
[1772726589865,11.1958047,89.32,89.261,3.65348571]
[1772726590068,11.1958047,89.32,89.254,95.23382704]
[1772726590069,0.27903614,89.299,89.252,3.65348571]
[1772726590246,0.27903614,89.298,89.247,11.20482415]
[1772726590564,0.27903614,89.298,89.248,3.65348571]
[1772726590908,0.28432314,89.299,89.245,1e-08]
[1772726590909,0.27903614,89.296,89.245,1e-08]
[1772726591066,0.27916476,89.288,89.245,1e-08]
[1772726591772,0.27916476,89.288,89.245,3.65348572]
[1772726592868,0.27941758,89.285,89.245,3.65348572]
[1772726593167,0.27941758,89.284,89.245,1e-08]
[1772726593374,0.27941758,89.278,89.245,1e-08]
[1772726593868,0.27954181,89.276,89.226,3.65348571]
[1772726594171,0.27954181,89.276,89.232,3.65348571]
[1772726594877,39.48436918,89.275,89.234,3.65348571]
[1772726595096,39.48436918,89.275,89.198,3.69383402]
[1772726595097,3.69383402,89.272,89.219,3.65348571]
[1772726595251,0.27966462,89.258,89.214,11.20895222]
[1772726595452,0.27966462,89.282,89.222,3.65348571]
[1772726595770,1.67972286,89.282,89.222,3.65348571]
[1772726596155,0.27966462,89.282,89.222,3.65348571]
[1772726596578,39.48449058,89.275,89.222,3.65348571]
[1772726597170,0.27990603,89.274,89.224,3.65348571]
[1772726597683,39.20470456,89.275,89.224,3.65348571]
[1772726597974,11.20134416,89.275,89.224,3.65348571]
[1772726598882,39.20470456,89.275,89.224,3.65348571]
[1772726599184,28.28361823,89.275,89.226,3.76831341]
[1772726599561,0.28025783,89.274,89.226,3.76831341]
[1772726600079,28.0033604,89.275,89.226,3.76831341]
[1772726600282,11.20021504,89.284,89.226,3.76831341]
[1772726601161,11.19896073,89.294,89.234,3.76831341]
[1772726602270,11.1977067,89.304,89.244,3.76831341]
[1772726602474,11.1963276,89.315,89.248,3.76831341]
[1772726602781,11.19579488,89.32,89.26,3.76831341]
[1772726603076,11.19579488,89.32,89.264,3.76831341]
[1772726603277,27.98568557,89.332,89.266,3.76831341]
[1772726603678,27.98568557,89.332,89.27,3.76831341]
[1772726603873,0.28081775,89.331,89.274,3.76831341]
[1772726604671,0.28081775,89.329,89.274,3.76831341]
[1772726604869,0.2809259,89.328,89.274,3.76831341]
[1772726605260,0.2809259,89.325,89.276,3.76831341]
[1772726606065,39.18232092,89.326,89.276,3.76831341]
[1772726606270,11.19494883,89.326,89.276,3.76831341]
[1772726606978,0.28113849,89.325,89.276,3.76831341]
[1772726607371,0.28124296,89.323,89.278,3.65348571]
[1772726608473,11.19545016,89.322,89.28,3.65348571]
[1772726609481,11.19256813,89.345,89.283,3.65348571]
[1772726609779,0.28144832,89.338,89.283,3.65348571]
[1772726609994,0.28154923,89.336,89.283,3.65348571]
[1772726610190,0.28154923,89.333,89.283,3.65348571]
[1772726610684,11.47574615,89.332,89.285,3.65348571]
[1772726610897,0.28164898,89.33,89.285,3.65348571]
[1772726611080,0.28164898,89.327,89.285,3.65348571]
[1772726612788,0.28184506,89.325,89.285,14.85348478]
[1772726613365,0.28184506,89.325,89.285,3.65348571]
[1772726613584,0.28184506,89.325,89.285,14.85355659]
[1772726613979,0.28184506,89.325,89.286,3.65348571]
[1772726614163,11.19494883,89.326,89.286,3.65348571]
[1772726614363,0.28194141,89.325,89.286,3.65348571]
[1772726614790,0.28194141,89.325,89.259,0.84001685]
[1772726614791,11.19519949,89.324,89.288,3.65348571]
[1772726615177,0.28432314,89.346,89.288,3.65348571]
[1772726615178,11.19407161,89.333,89.288,3.65348571]
[1772726615382,0.28203666,89.343,89.288,3.65348571]
[1772726615383,11.19294396,89.342,89.288,3.65348571]
[1772726615770,0.28213081,89.341,89.288,3.65348571]
[1772726616188,11.19294396,89.342,89.288,3.65348571]
[1772726616970,27.97877057,89.354,89.292,3.65348571]
[1772726616971,11.47429095,89.349,89.292,3.65348571]
[1772726617288,11.47429095,89.349,89.294,3.65348571]
[1772726617485,11.19206706,89.349,89.294,3.65348571]
[1772726617890,0.28231589,89.348,89.294,3.65348571]
[1772726618869,0.28240684,89.346,89.295,39.19592362]
[1772726619077,0.28240684,89.346,89.296,3.65348571]
[1772726619585,11.19184318,89.351,89.298,3.65348571]
[1772726619894,11.19184318,89.351,89.304,3.65348571]
[1772726620295,0.28240684,89.355,89.304,3.65348571]
[1772726620587,0.2,89.37,89.295,95.19010022]
[1772726620588,11.38950123,89.37,89.314,3.65348571]
[1772726620789,0.2,89.37,89.324,3.65348571]
[1772726620992,1e-08,89.37,89.328,3.65348571]
[1772726621296,1e-08,89.37,89.332,3.65348571]
[1772726621592,1e-08,89.37,89.328,3.69383402]
[1772726621593,11.18718396,89.388,89.335,3.65348571]
[1772726623094,0.27591619,89.388,89.337,3.65348571]
[1772726623490,0.27591619,89.397,89.337,3.65348571]
[1772726624092,0.27262232,89.395,89.337,3.65348571]
[1772726624391,0.27262232,89.393,89.337,3.65348571]
[1772726624971,0.26936108,89.389,89.337,3.65348571]
[1772726625167,0.14216157,89.398,89.339,3.65348571]
[1772726625168,0.26936108,89.386,89.339,3.65348571]
[1772726625574,0.26936108,89.385,89.339,3.65348571]
[1772726625788,11.18673808,89.392,89.341,3.65348571]
[1772726625972,11.18673808,89.392,89.343,3.65348571]
[1772726626781,0.26296463,89.391,89.343,3.65348571]
[1772726626996,0.26296463,89.391,89.335,11.19382101]
[1772726626997,0.26296463,89.379,89.335,11.19382101]
[1772726627200,0.26296463,89.377,89.335,11.19382101]
[1772726627874,0.2598698,89.375,89.335,11.19382101]
[1772726628070,0.2598698,89.375,89.335,14.84730672]
[1772726628504,0.2598698,89.375,89.336,3.65348571]
[1772726629393,0.28432314,89.369,89.327,11.19482351]
[1772726629576,0.25368966,89.367,89.327,11.19482351]
[1772726630795,0.25071111,89.365,89.319,3.76059726]
[1772726632601,0.28432314,89.359,89.318,11.19595154]
[1772726632920,0.24473675,89.356,89.312,3.76059726]
[1772726633210,0.24186682,89.349,89.29,3.76059726]
[1772726633378,0.24186682,89.348,89.29,3.76059726]
[1772726634306,0.23899065,89.339,89.283,3.76059726]
[1772726634501,0.14216157,89.319,89.274,3.76059726]
[1772726634705,0.2361531,89.296,89.246,3.76059726]
[1772726634879,11.19845909,89.298,89.246,3.76059726]
[1772726635085,11.19733055,89.307,89.248,3.76059726]
[1772726635299,11.19607689,89.317,89.252,3.76059726]
[1772726635505,11.19607689,89.317,89.245,84.03832145]
[1772726635506,11.19607689,89.317,89.254,3.76059726]
[1772726635696,0.2361531,89.316,89.254,3.76059726]
[1772726635981,0.2333476,89.309,89.254,3.76059726]
[1772726636108,0.2333476,89.308,89.254,3.76059726]
[1772726637110,0.23059521,89.306,89.256,3.76059726]
[1772726639197,0.22512018,89.299,89.258,3.76059726]
[1772726640203,0.2224857,89.298,89.246,3.76059726]
[1772726640513,0.2224857,89.288,89.248,3.76059726]
[1772726640819,0.21984345,89.313,89.25,3.76059726]
[1772726640999,0.21984345,89.313,89.254,3.76059726]
[1772726641321,0.21984345,89.313,89.247,56.02429212]
[1772726641322,11.19670369,89.312,89.256,3.76059726]
[1772726641820,0.21984345,89.311,89.256,3.76059726]
[1772726642195,0.21984345,89.311,89.225,3.76059726]
[1772726642196,0.21722537,89.288,89.225,3.76059726]
[1772726642597,0.21722537,89.278,89.225,3.76059726]
[1772726643319,11.34618543,89.29,89.227,3.76059726]
[1772726643320,0.21464598,89.288,89.227,3.76059726]
[1772726643610,0.21464598,89.285,89.227,3.76059726]
[1772726645414,11.34618543,89.29,89.208,50.38]
[1772726645415,0.20958603,89.278,89.229,3.76059726]
[1772726645823,0.20710328,89.268,89.223,11.20782502]
[1772726646119,0.20710328,89.248,89.22,0.2]
[1772726646502,0.49142642,89.269,89.222,3.76059726]
[1772726647417,0.20710328,89.269,89.224,3.76059726]
[1772726647717,11.4056764,89.278,89.224,3.76059726]
[1772726647915,0.28432314,89.277,89.224,3.76059726]
[1772726648924,0.19996571,89.298,89.227,3.76059726]
[1772726649218,0.19996571,89.278,89.227,3.76059726]
[1772726649420,0.19996571,89.278,89.229,3.76059726]
[1772726649421,0.19996571,89.276,89.229,3.76059726]
[1772726649919,0.19760433,89.291,89.229,3.76059726]
[1772726650114,0.19760433,89.288,89.232,3.76059726]
[1772726650311,0.19760433,89.286,89.232,3.76059726]
[1772726650620,0.19760433,89.285,89.232,3.76059726]
[1772726650825,0.19760433,89.283,89.232,3.76059726]
[1772726651123,0.19526285,89.28,89.232,3.76059726]
[1772726651425,1.4000896,89.28,89.234,3.76059726]
[1772726651625,0.19526285,89.281,89.234,3.76059726]
[1772726651922,0.19526285,89.28,89.234,3.76059726]
[1772726652122,0.19294812,89.291,89.234,3.76059726]
[1772726652325,39.33862399,89.31,89.233,84.04962288]
[1772726652326,0.19294812,89.302,89.237,3.76059726]
[1772726652504,0.19294812,89.302,89.239,3.76059726]
[1772726652704,11.39091876,89.302,89.243,3.76059726]
[1772726653010,0.19294812,89.302,89.243,3.76059726]
[1772726653225,11.388752,89.301,89.243,3.76059726]
[1772726653416,11.388752,89.301,89.245,3.76059726]
[1772726653417,0.19066912,89.3,89.245,3.76059726]
[1772726654514,0.18840013,89.299,89.245,3.76059726]
[1772726654728,0.18840013,89.289,89.245,3.76059726]
[1772726654933,0.1861551,89.286,89.245,3.76059726]
[1772726655649,0.1861551,89.284,89.247,3.76059726]
[1772726655937,0.1861551,89.284,89.241,11.20555905]
[1772726655938,0.18395557,89.279,89.241,11.20555905]
[1772726656107,0.46827871,89.277,89.242,3.76059726]
[1772726656308,0.18395557,89.276,89.242,3.76059726]
[1772726657629,11.3831086,89.275,89.243,11.20536064]
[1772726658012,0.17958523,89.274,89.243,11.20536064]
[1772726658425,0.17958523,89.274,89.243,14.9659579]
[1772726658817,0.17541579,89.279,89.244,3.72241019]
[1772726659030,0.17541579,89.309,89.244,3.72241019]
[1772726659244,1.39965064,89.308,89.244,3.72241019]
[1772726659533,11.19858449,89.297,89.244,3.72241019]
[1772726659734,11.19858449,89.297,89.239,11.20581999]
[1772726659735,0.17541579,89.288,89.239,11.20581999]
[1772726659911,0.17332228,89.286,89.239,11.20581999]
[1772726660108,0.17332228,89.283,89.239,14.92823018]
[1772726660312,0.17332228,89.28,89.239,14.92823018]
[1772726660512,0.17332228,89.277,89.239,14.92823018]
[1772726660740,0.17332228,89.274,89.239,14.92823018]
[1772726661536,0.17332228,89.274,89.24,3.72241019]
[1772726662941,11.2015951,89.273,89.242,3.72241019]
[1772726663637,0.16717479,89.272,89.242,3.72241019]
[1772726663837,0.16517819,89.27,89.231,11.20686756]
[1772726664016,0.16517819,89.269,89.232,3.72241019]
[1772726664617,0.16517819,89.267,89.231,11.20686756]
[1772726664831,11.20360307,89.257,89.221,3.72241019]
[1772726665134,0.16321853,89.249,89.22,0.2]
[1772726665342,0.16321853,89.248,89.22,0.2]
[1772726666231,0.16321853,89.248,89.209,3.73408322]
[1772726666615,0.16321853,89.248,89.172,89.71364497]
[1772726666616,0.28432314,89.249,89.164,44.86113936]
[1772726666940,11.2037286,89.256,89.204,3.73408322]
[1772726667238,39.2130501,89.256,89.204,3.73408322]
[1772726667430,11.2037286,89.256,89.204,3.73408322]
[1772726668337,0.28432314,89.267,89.204,3.73408322]
[1772726668532,11.20222252,89.268,89.204,3.73408322]
[1772726668732,0.14216157,89.267,89.204,3.73408322]
[1772726668934,0.28432314,89.267,89.212,3.73408322]
[1772726669136,11.2024735,89.266,89.212,3.73408322]
[1772726669826,11.35781522,89.28,89.208,39.2341494]
[1772726669827,1.40015233,89.276,89.214,3.73408322]
[1772726670136,11.19983872,89.287,89.222,3.73408322]
[1772726670339,39.19943552,89.287,89.224,3.73408322]
[1772726670542,0.14216157,89.279,89.224,3.73408322]
[1772726670739,0.28432314,89.269,89.224,3.73408322]
[1772726671038,11.2012382,89.276,89.226,3.73408322]
[1772726671236,0.28432314,89.275,89.226,3.73408322]
[1772726671542,0.28432314,89.269,89.226,3.73408322]
[1772726671744,1.40027781,89.268,89.226,3.73408322]
[1772726672245,0.28432314,89.269,89.226,3.73408322]
[1772726673139,11.35781522,89.28,89.205,3.69383402]
[1772726673140,11.48391099,89.289,89.228,3.73408322]
[1772726673340,1.39996416,89.288,89.228,3.73408322]
[1772726673526,0.28432314,89.279,89.228,3.73408322]
[1772726673722,1.40012097,89.278,89.228,3.73408322]
[1772726673920,0.28432314,89.269,89.228,3.73408322]
[1772726674348,1.68458526,89.269,89.228,3.73408322]
[1772726675442,0.28432314,89.267,89.229,11.20711876]